Cogmind - Beta 13 @@@ ROGUE MODE // 2024.06.11 @ 22:16:08 Player: Crap Result: Destroyed by Y-45 Defender with Beam Rifle Performance ------------- Evolutions (1) 500 Regions Visited (4) 800 Robots Destroyed (32) 160 Value Destroyed (861) 861 Prototype IDs (5) 100 Alien Tech Used (0) 0 Bonus (135) 135 TOTAL SCORE: 2556 Bonus ------- Follower Combat Kills 135 Cogmind --------- Core Integrity 0/400 Matter 261/300 Energy 40/100 System Corruption 1% Temperature Cool (9) Movement Walking (190) Ox1 Location -9/Storage Parts ------- > --- POWER (1) -------- (None) > --- PROPULSION (4) --- Aluminum Leg Aluminum Leg Improved Flight Unit > --- UTILITY (2) ------ Large Storage Unit Medium Armor Plating > --- WEAPON (2) ------- Improved Assault Rifle > --- INVENTORY (15) --- Ion Engine Ion Engine Power Amplifier Improved Heat Sink Compact Battery (127) Visual Processing Unit Improved EM Shotgun Improved EM Shotgun Beam Rifle Particle Gun Advanced Beam Cannon Improved Assault Rifle Improved Assault Rifle Peak State ------------ > --- POWER ------------ Improved Ion Engine > --- PROPULSION ------- Aluminum Leg Aluminum Leg Aluminum Leg Improved Aluminum Leg > --- UTILITY ---------- Large Storage Unit Remote Shield > --- WEAPON ----------- Beamcaster Light EM Pulse Cannon > --- INVENTORY -------- Ion Engine Ion Engine Aluminum Leg Improved Flight Unit Power Amplifier Heat Sink Improved Heat Sink Improved Heat Sink Compact Battery Visual Processing Unit Medium Armor Plating Beam Rifle Particle Gun Advanced Beam Cannon Heavy Assault Rifle [Rating: 23] Favorites ----------- Power Ion Engine Engine Ion Engine Propulsion Light Treads Treads Light Treads Leg Aluminum Leg Hover Unit Improved Hover Unit Flight Unit Improved Flight Unit Utility Large Storage Unit Device Improved Terrain Scanner Storage Large Storage Unit Protection Light Armor Plating Weapon Medium Laser Energy Gun Medium Laser Energy Cannon Advanced Beam Cannon Ballistic Gun Assault Rifle Special Weapon Mining Laser Slashing Weapon Ripper Build | -11 -10 -10 -9 -9 ------- Run | Yrd Mat Min Mat Sto Slots Evolved 2 | . . . 2 . Power . | . . . . . Propulsion 2 | . . . 2 . Utility . | . . . . . Weapon . | . . . . . Parts Attached 67 | 8 7 2 8 42 Power 6 | 1 1 . . 4 Engine 6 | 1 1 . . 4 Core . | . . . . . Reactor . | . . . . . Propulsion 29 | 2 3 . 6 18 Treads 14 | 2 2 . 2 8 Leg 7 | . . . . 7 Wheel . | . . . . . Hover 5 | . 1 . 4 . Flight 3 | . . . . 3 Utility 12 | 3 3 . . 6 Device 6 | 1 1 . . 4 Storage 3 | 2 1 . . . Processor . | . . . . . Hackware . | . . . . . Protection 3 | . 1 . . 2 Artifact . | . . . . . Weapon 20 | 2 . 2 2 14 Energy Gun 6 | 1 . . 1 4 Energy Cannon 7 | . . . . 7 Ballistic Gun 5 | 1 . . 1 3 Ballistic Cannon . | . . . . . Launcher . | . . . . . Special Weapon 1 | . . 1 . . Impact Weapon . | . . . . . Slashing Weapon 1 | . . 1 . . Piercing Weapon . | . . . . . Special Melee Weapon . | . . . . . Unidentified Prototypes 5 | . . . . 5 Parts Lost 15 | . 1 . . 14 Power 4 | . 1 . . 3 Propulsion 6 | . . . . 6 Utility 2 | . . . . 2 Weapon 3 | . . . . 3 Highest Loss Streak 4 | . 1 . . 4 To Critical Strikes . | . . . . . Average Slot Usage (%) 92 | . 98 100 98 84 Engine 11 | . 14 14 11 7 Treads 25 | . 25 28 12 24 Leg 4 | . . . . 10 Hover 3 | . 1 . 32 3 Device 4 | . 12 . . 2 Storage 12 | . 14 14 11 11 Protection 5 | . 1 14 11 3 Energy Gun 9 | . 14 5 8 8 Energy Cannon 3 | . . . . 8 Ballistic Gun 5 | . 14 . 7 3 Special Weapon 3 | . . 13 3 . Slashing Weapon 2 | . . 8 3 . Naked Turns . | . . . . . Heaviest Build 41 | 19 32 32 32 41 Greatest Support 89 | 40 40 40 80 89 Greatest Overweight (x) 11 | . 4 . 1 11 Average Overweight (x) . | . . . . . Largest Inventory Capacity 15 | 8 15 15 15 15 Average Capacity 14 | 7 14 15 15 15 Most Carried 15 | 2 9 12 15 15 Average Carried 9 | 1 3 10 13 12 Final Capacity 15 | 8 15 15 15 15 Final Carried 14 | 2 9 12 14 13 Class Distribution -------------------- 87% | Mutant 12% | Scavenger-Mutant Dominant Class ---------------- Mutant | -10/Materials Mutant | -10/Mines Mutant | -9/Materials Mutant | -9/Storage Resources | -11 -10 -10 -9 -9 ----------- Run | Yrd Mat Min Mat Sto Matter Collected 971 | 119 138 29 36 649 Remotely . | . . . . . Salvage Created 1199 | 103 155 . 36 905 Parts 79 | 9 10 2 1 57 Haulers Intercepted 1 | . . . . 1 Recyclers Shooed . | . . . . . Parts Field Recycled . | . . . . . Retrieved Matter . | . . . . . Parts Self-Destructed . | . . . . . Prevented . | . . . . . Kills | -11 -10 -10 -9 -9 ------- Run | Yrd Mat Min Mat Sto Combat Hostiles Destroyed 25 | . 2 . 1 22 Guns 12 | . 2 . 1 9 Cannons 12 | . . . . 12 Classes Destroyed 9 | 2 2 . . 5 Tunneler 3 | 2 . 1 . . Hauler 1 | . . . . 1 Recycler 1 | 1 . . . . Watcher 2 | . 2 . . . Swarmer 6 | . . . . 6 Grunt 13 | . 2 . 1 10 Duelist 1 | . . . . 1 Protector 1 | . . . . 1 Sentry 4 | . . . . 4 Best Kill Streak 5 | 2 2 1 1 5 Combat Bots Only 5 | . 2 . 1 5 Max Kills in Single Turn 2 | 1 1 1 1 2 Gunslinging . | . . . . . Exploded . | . . . . . Melee . | . . . . . Uniques/NPCs Destroyed . | . . . . . Combat | -11 -10 -10 -9 -9 -------- Run | Yrd Mat Min Mat Sto Hostile Shots Fired 254 | . 21 . 1 232 Missed 51 | . 3 . . 48 Damage Taken 2669 | . 230 . 11 2428 Core 431 | . 25 . . 406 Absorbed by Shields 22 | . . . . 22 Redirected to Shielding 42 | . . . . 42 Regen/Repaired (Parts) 61 | . . . . 61 Core Remaining (%) 95 | 100 . 90 . . Volleys Fired 104 | 7 18 1 2 76 Largest 2 | 2 2 1 2 2 Hottest 136 | 70 70 50 70 136 Shots Fired 185 | 14 36 1 4 130 Gun 122 | 14 36 1 4 67 Cannon 63 | . . . . 63 Launcher . | . . . . . Special . | . . . . . Kinetic 48 | 7 18 . 2 21 Thermal 119 | 7 18 1 2 91 Explosive . | . . . . . Electromagnetic 18 | . . . . 18 Robot Hit Streak 9 | 5 9 . 2 6 Robot Miss Streak 7 | 3 7 . 2 5 Penetration Max . | . . . . . Secondary Targets 1 | . . . . 1 Max Gunslinging Chain 1 | . . . . 1 Shots Hit Robots 110 | 7 21 . 2 80 Core Hits 45 | 4 8 . 2 31 Critical Kills 1 | . . . . 1 Critical Parts Destroyed 2 | . . . . 2 Critical Strikes 10 | 1 1 . 1 7 Burn 6 | 1 1 . 1 3 Meltdown 1 | . . . . 1 Destroy 2 | . . . . 2 Corrupt 1 | . . . . 1 Melee Attacks . | . . . . . Impact . | . . . . . Slashing . | . . . . . Piercing . | . . . . . Sneak Attacks . | . . . . . Combat Hostiles . | . . . . . Follow-up Attacks . | . . . . . Damage Inflicted 1864 | 88 261 1 27 1487 Guns 1075 | 88 261 . 27 699 Cannons 783 | . . . . 783 Explosions . | . . . . . Melee . | . . . . . Ramming 6 | . . 1 . 5 Kinetic 388 | 51 113 . 14 210 Thermal 1197 | 37 148 . 13 999 Explosive . | . . . . . Electromagnetic 273 | . . . . 273 Impact . | . . . . . Slashing . | . . . . . Piercing . | . . . . . Highest Corruption 1 | . . . . 1 Average Corruption 1 | . . . . 1 Corruption Purged . | . . . . . Corruption Blocked . | . . . . . Effects 7 | . . . . 7 Message Errors 1 | . . . . 1 Matter Fused 2 | . . . . 2 Data Loss (minor) 1 | . . . . 1 Misfires 1 | . . . . 1 Alerts 1 | . . . . 1 Weapon Failures 1 | . . . . 1 Overload Shots . | . . . . . Overflow Damage 3 | . . . . 3 Projectiles 3 | . . . . 3 Explosions . | . . . . . Melee . | . . . . . Knockbacks . | . . . . . Impact . | . . . . . Kinetic . | . . . . . Secondary . | . . . . . Self-Inflicted Damage . | . . . . . Shots . | . . . . . Rammed 1 | . . . . 1 Targets Rammed 3 | . . 1 . 2 Kicked 1 | . . . . 1 Crushed 1 | . . 1 . . Highest Temperature 603 | 27 214 16 48 603 Average Temperature 160 | 12 69 8 28 197 Received Heat Transfer 1020 | . 129 . 6 885 Effects 20 | . . . . 20 Shutdowns 1 | . . . . 1 Energy Bleed 4 | . . . . 4 Interference 3 | . . . . 3 Matter Decay 1 | . . . . 1 Short Circuit 3 | . . . . 3 Damage (minor) 1 | . . . . 1 Damage (major) 5 | . . . . 5 Damage (core) 2 | . . . . 2 Siege Activations . | . . . . . Robots Corrupted . | . . . . . Combat Hostiles . | . . . . . Parts Fried 1 | . . . . 1 Impact Corruptions . | . . . . . Robots Melted 1 | . . . . 1 Combat Hostiles 1 | . . . . 1 Parts Melted 4 | . 1 . . 3 Heat Transferred 3054 | 185 518 . 111 2240 Parts Sabotaged . | . . . . . Parts Stolen . | . . . . . Parts Stripped . | . . . . . Power Chain Reactions . | . . . . . Alert | -11 -10 -10 -9 -9 ------- Run | Yrd Mat Min Mat Sto Peak Influence 385 | 15 84 5 35 385 Initial 14 | . 9 . . 14 Average 69 | 6 17 1 4 145 Maximum Alert Level 1 | . . . . 1 Low Security (%) 87 | 100 100 100 100 70 Level 1 12 | . . . . 29 Level 2 . | . . . . . Level 3 . | . . . . . Level 4 . | . . . . . Level 5 . | . . . . . High Security . | . . . . . Max Security . | . . . . . Squads Dispatched 6 | . . . . 6 Investigation 2 | . . . . 2 Extermination . | . . . . . Reinforcement 2 | . . . . 2 Assault 2 | . . . . 2 Garrison . | . . . . . Intercept . | . . . . . Searches Triggered . | . . . . . Construction Impeded . | . . . . . Haulers Reinforced . | . . . . . Active Scanning Responses . | . . . . . Cargo Convoy Interrupts . | . . . . . Stealth | -11 -10 -10 -9 -9 --------- Run | Yrd Mat Min Mat Sto Distress Signals 2 | . . . . 2 Communications Jammed . | . . . . . Distress Signals . | . . . . . Times Spotted 53 | . 8 . 2 43 Peak Tracking Total 10 | . 3 . 2 10 Tactical Retreats 3 | . . . 1 2 Traps | -11 -10 -10 -9 -9 ------- Run | Yrd Mat Min Mat Sto Traps Triggered 3 | . . . . 3 Indirectly . | . . . . . Trap Hack Attempts . | . . . . . Triggered . | . . . . . Disarmed . | . . . . . Reprogrammed . | . . . . . Reused . | . . . . . Traps Extracted . | . . . . . Installed . | . . . . . Triggered . | . . . . . Machines | -11 -10 -10 -9 -9 ---------- Run | Yrd Mat Min Mat Sto Machines Disabled 2 | . . . . 2 Max in Single Turn 1 | . . . . 1 Machines Repaired . | . . . . . Machines Dismantled . | . . . . . Machines Sabotaged . | . . . . . Overloaded Fab Kills . | . . . . . Hacking | -11 -10 -10 -9 -9 --------- Run | Yrd Mat Min Mat Sto Machines Accessed 3 | . 1 . . 2 Terminals 2 | . 1 . . 1 Fabricators . | . . . . . Repair Stations 1 | . . . . 1 Recycling Units . | . . . . . Scanalyzers . | . . . . . Garrison Access . | . . . . . Total Hacks 13 | . 2 . . 11 Successful 9 | . 2 . . 7 Failed 4 | . . . . 4 Catastrophic . | . . . . . Database Lockouts . | . . . . . Manual . | . . . . . Terminals 9 | . 2 . . 7 Fabricators . | . . . . . Repair Stations 4 | . . . . 4 Recycling Units . | . . . . . Scanalyzers . | . . . . . Garrison Access . | . . . . . Terminal Hacks 7 | . 2 . . 5 Record 5 | . . . . 5 Locate Traps 1 | . 1 . . . Investigation Status 1 | . 1 . . . Fabricator Hacks . | . . . . . Repair Station Hacks 2 | . . . . 2 Scan Component 1 | . . . . 1 Repair 1 | . . . . 1 Recycling Unit Hacks . | . . . . . Scanalyzer . | . . . . . Garrison Access Hacks . | . . . . . Unauthorized Hacks . | . . . . . Terminals . | . . . . . Fabricators . | . . . . . Repair Stations . | . . . . . Recycling Units . | . . . . . Scanalyzers . | . . . . . Garrison Access . | . . . . . Data Cores Recovered . | . . . . . Used . | . . . . . Hacking Detections 3 | . 1 . . 2 Full Trace Events 2 | . . . . 2 Feedback Events . | . . . . . Feedback Blocked . | . . . . . Robot Schematics Acquired . | . . . . . Robots Built . | . . . . . Authchips . | . . . . . Time . | . . . . . Total Robot Build Rating . | . . . . . Part Schematics Acquired . | . . . . . Parts Built . | . . . . . Authchips . | . . . . . Time . | . . . . . Total Part Build Rating . | . . . . . Parts Repaired 1 | . . . . 1 Time 51 | . . . . 51 Parts Recycled . | . . . . . Recycled Matter . | . . . . . Retrieved Matter . | . . . . . Retrieved Components . | . . . . . Parts Scanalyzed . | . . . . . Part Schematics Acquired . | . . . . . Parts Damaged . | . . . . . Bothacking | -11 -10 -10 -9 -9 ------------ Run | Yrd Mat Min Mat Sto Used RIF Installer . | . . . . . Robots Hacked . | . . . . . Non-combat . | . . . . . Combat . | . . . . . Robot Hacks Applied . | . . . . . Relay Couplers Released . | . . . . . Fabnet Peak Effective % . | . . . . . Robots Rewired . | . . . . . Allies Hacked . | . . . . . Hacks Repelled . | . . . . . Allies | -11 -10 -10 -9 -9 -------- Run | Yrd Mat Min Mat Sto Total Allies 3 | . . 1 . 2 Largest Group 2 | . . 1 . 2 Highest-Rated Group 62 | . . 31 . 62 Highest-Rated Ally 31 | . . 31 . 31 Total Orders . | . . . . . Ally Attacks 39 | . . . . 39 Total Damage 556 | . . . . 556 Kills 7 | . . . . 7 Allies Corrupted . | . . . . . Allies Melted . | . . . . . Intel | -11 -10 -10 -9 -9 ------- Run | Yrd Mat Min Mat Sto Robot Analysis Total . | . . . . . Derelict Logs Recovered 1 | . . 1 . . Drone Launches . | . . . . . Drone Recoveries . | . . . . . Exploration | -11 -10 -10 -9 -9 ------------- Run | Yrd Mat Min Mat Sto Turns Passed 3041 | 95 809 693 102 1342 Spaces Moved 1213 | 40 156 414 46 557 Core 9 | 3 . . . 6 Treads 925 | 37 133 414 11 330 Legs 145 | . . . . 145 Wheels . | . . . . . Hover 134 | . 23 . 35 76 Flight . | . . . . . Fastest Speed 50 | 50 160 160 108 108 Average Speed 157 | 151 180 160 120 151 Slowest Speed 600 | 160 300 160 160 600 Overloaded Moves . | . . . . . Propulsion Burnouts . | . . . . . Robots Hopped . | . . . . . Cave-ins Triggered . | . . . . . Exploration Rate (%) 34 | 5 27 78 4 60 Regions Visited 4 Branch Regions 2 Pre-discovered Areas . | . . . . . Known Exits Taken 1 | . . . 1 . Unknown Exits Taken 3 | 1 1 1 . . Scrap Searched 1 | . . 1 . . Spaces Dug . | . . . . . Terrain Destroyed . | . . . . . Melee . | . . . . . Projectile . | . . . . . AOE . | . . . . . Terrain Rammed . | . . . . . Walls Destroyed . | . . . . . Machines Disabled . | . . . . . Actions | -11 -10 -10 -9 -9 --------- Run | Yrd Mat Min Mat Sto Total 2172 | 57 649 442 88 936 Wait 689 | . 454 22 24 189 Move 1209 | 39 155 413 45 557 Hop . | . . . . . Pick Up 49 | 2 9 3 6 29 Fast Attach 17 | 7 . . . 10 Attach 27 | 1 5 . 4 17 Detach 17 | 1 4 . 1 11 Swap 23 | . 2 2 4 15 Drop 34 | . 2 . 2 30 Fire 104 | 7 18 1 2 76 Melee . | . . . . . Ram . | . . . . . Kick 1 | . . . . 1 Crush 2 | . . 1 . 1 Escape Stasis . | . . . . . Rewire . | . . . . . Trap . | . . . . . Miscellaneous . | . . . . . Route ------- -11/Scrapyard -10/Materials -10/Mines -9/Materials (discovered 4 exits: Mat x2 / Min / *Sto) -9/Storage History --------- Turn | Location | Event 41 | -11/Scrapyard | Discovered new exit (range 15) 96 | -11/Scrapyard | Entered Materials 309 | -10/Materials | Build established: Mutant 881 | -10/Materials | Discovered new exit (range 12) 905 | -10/Materials | Entered Mines 908 | -10/Mines | Received a Mining Laser from a helpful Derelict 927 | -10/Mines | Met a Derelict bent on vengeance 958 | -10/Mines | Discovered new exit (range 11) 1143 | -10/Mines | A weapon hastily lodged in a ceiling crevice suddenly fell to the ground 1249 | -10/Mines | Learned 8 Materials zone layouts 1598 | -10/Mines | Entered Materials 1598 | -9/Materials | Evolved 2 slots: Propulsion x2 1599 | -9/Materials | Identified exit to Materials 1599 | -9/Materials | Identified exit to Storage 1599 | -9/Materials | Identified exit to Mines 1700 | -9/Materials | Entered Storage 2039 | -9/Storage | Repaired Adv. Beam Cannon? 2467 | -9/Storage | Met a pair of Derelict thieves 2524 | -9/Storage | Core integrity fell below 50% 2572 | -9/Storage | Lost 4 parts (1p1n1u1w) 2876 | -9/Storage | Lost 3 parts (1p1n1w) 2971 | -9/Storage | Core integrity fell below 20% 2976 | -9/Storage | Build established: Scavenger-Mutant 3042 | -9/Storage | Destroyed by Y-45 Defender with Beam Rifle Last Messages --------------- System corrupted: Component data lost. Critical hit (Burn: +37). U-05 Engineer lays Concrete. U-05 Engineer builds a Wall. U-05 Engineer lays Concrete. U-05 Engineer builds a Wall. U-05 Engineer lays Concrete. Critical hit (Burn: +37). U-05 Engineer lays Concrete. U-05 Engineer builds a Wall. Critical hit (Burn: +37). U-05 Engineer builds a Door. Imp. Aluminum Leg destroyed. Critical hit (Burn: +37). Y-45 Defender destroyed. Acquired 54 matter. Imp. EM Shotgun destroyed. Y-45 Defender suffers critical hit (Destroy). Destroyed Heat Sink. Aluminum Leg destroyed. Map ----- +----------------------------------------------------+ | ?????????T #??????? ??????## | | ??#### ### #??????? ??????#T== | | # # #??????? ?????##"= | | # """ + #??????" ??????#== | | ? """ # #??????" ???????#== | | ? """ ?# #??????" ????????# = | | ??? ?# #?????? ????????### | | ? """ # #######+##??????????? | | # """ # ^""" #?????###### | | # """ / "T" #??####*#### | | # # #### !%= | | ??######## #""" | | # # #"R = | | # + #""" | | # # #### [ | | # !! # #?## ] | | # != # ####T# #?# | | # != ?# ######/###### | | # # ## ##### ## | | # + ##[ ########? | | # # =+% #???????? | | ## ####### ##[ #???????? | | ?##????### ## #???##### | | ???????# Y ###########+##### % | | ???????"Y# #?????# =% +[ % | | ???????#@# #?????# "" " #=%[% | | ???????#T# #?????# " ]"" #=%%# | | ???????### #?????# ?" !""" + %=# | | ?????????# #?????# ?"""![" #% %# | | ?????????# #?????#????"[=" # % # | | ?????????# #??????????"""" # % # | | ?????????# #????????????? # # | | ?????????# #?????????????### % # | | ????????? ??????????????? | | ????????? ??????????????? | | ????????? ?????????????? | | ????????? #??????????????###+## | | ?????????? ?????????????????? ? | | ?????????????????????????????? ? | | ?????????????????????????????? ? | | ?????????????????????????????? ? | | ??????????????????????????????! ? | | ?????????????????????????????? ? | | ????????????????????????????????? | | ????????????????????????????????? | | ????????????????????????????????? | | ????????????????????????????????? | | ????????????????????????????????? | | ????????????????????????????????? | | ????????????????????????????????? | +----------------------------------------------------+ Best States ------------- Heat Dissipation 38 Energy Generation 13 Energy Capacity 265 Matter Stores 300 Matter Capacity 300 Sight Range 16 Terrain Scan Range 16 Terrain Scan Density 10 Power Amplification 20 Armor Coverage 150 Propulsion Shielding 33 Evasion (%) 55 Recoil Reduction 4 Item Schematics ----------------- None Robot Schematics ------------------ None Fabricated ------------ Nothing Alien Tech Used ----------------- None Achievements -------------- Loot Pinata Challenges ------------ None Game ------ Seed SwarmDisposableSplitter Manual? 0 Play Time 00:30:09 Cumulative 5.2 hours Start 2024.06.07 @ 18:40:01 End 2024.06.11 @ 22:16:08 Sessions 3 Manual Loads 0 Difficulty Rogue Special Mode None Game No. 9 Rogue 9 Adventurer 0 Explorer 0 Win Type - Total 0 Types 0/0/0/0/0/0/0/0/0 Lore% 1 Gallery% 12 Achievement% 8 Wizard Run 0 Options --------- Layout 0 ASCII 0 Keyboard 0 Movement Mouse Keybinds 0 Fullscreen 1 Font 24/Smallcaps Map View 76x50 Zoom Use 0% Tactical HUD 0 Map Filters NONE Filters NONE Steam 1 RUN: f1ba68f3-dc0d-4093-8ea5-01dc6b5c71f1